[Event "French-ch U16-U18 2024"]
[Site "Agen"]
[Date "2024.04.21"]
[Round "9.14"]
[White "Milojevic-Daim, Lola-Shaina"]
[Black "Dufeux, Elia"]
[Result "1/2-1/2"]
[ECO "B22"]
[WhiteElo "1867"]
[BlackElo "1728"]
[Annotator "NA COMBH"]
[PlyCount "151"]
[EventDate "2024.04.14"]
[EventType "swiss"]
[EventCountry "FRA"]
[SourceTitle "playchess.com"]
[Source "ChessBase"]
[SourceQuality "1"]
[TimeControl "5400+30"]

{[%evp 18,151,27,12,17,-22,32767,34,38,35,41,-36,32767,32767,-23,-33,0,32767,64,-11,14,10,32767,32767,32767,66,32767,32767,32767,32767,32767,32767,32767,32767,32767,0,32767,32767,32767,-27,32767,-11,32767,32767,32767,32767,32767,32767,32767,32767,32767,32767,32767,32767,32767,32767,32767,32767,32767,32767,32767,-58,32767,32767,32767,32767,32767,32767,32767,32767,32767,32767,32767,-165,-171,-377,-413,-534,-587,-533,-131,-137,-34,-265,-272,32767,0,-242,32767,-183,32767,32767,32767,-372,-383,32767,-16,-27,0,32767,-32,-32,32767,-24,32767,-109,0,0,0,0,0,0,0,0,0,0,0,-15,0,0,0,0,0,-24,0,0,0,0,0,0,0,0,0,0,0,0]} 1. e4 {[%emt 0:00:07]} c6 {[%emt 0:00:22]} 2. c4 {[%emt 0:00:33]} d5 {[%emt 0:01:35]} 3. cxd5 {[%emt 0:00:11]} cxd5 {[%emt 0:00:10]} 4. exd5 {[%emt 0:00:06]} Qxd5 {[%emt 0:00:15]} 5. Nc3 {[%emt 0:00:13]} Qd8 {[%emt 0:03:16]} 6. d4 {[%emt 0:02:04]} e6 {[%emt 0:04:31]} 7. Nf3 {[%emt 0:02:19]} Nf6 {[%emt 0:01:48]} 8. Bf4 {[%emt 0:06:21]} a6 {[%emt 0:04:46]} 9. Be2 {[%emt 0:06:53]} Nc6 {[%emt 0:01:44]} 10. O-O {[%emt 1:16:43]} Be7 {[%emt 0:02:46]} 11. Ne5 {[%emt 0:00:00] B22: Sicilian: 2 c3.} (11. Rc1 {feels stronger.}) 11... O-O {[%emt 0:18:07]} 12. Nxc6 {[%emt 0:00:00]} bxc6 {[%emt 0:00:07]} 13. Bf3 {[%emt 0:00:00]} Nd5 {[%emt 0:04:22]} 14. Be3 {[%emt 0:00:00]} ({Better is} 14. Be5 $14) 14... a5 {[%emt 0:05:53]} 15. Rc1 {[%emt 0:00:00]} Ba6 {[%emt 0:15:03]} 16. Re1 {[%emt 0:00:00]} Rc8 {[%emt 0:05:01]} (16... Nxe3 $15 {should be considered.} 17. fxe3 Rb8) 17. a3 {[%emt 0:00:00]} Bd6 {[%emt 0:16:22]} (17... Nxe3 $15 18. fxe3 c5) 18. Qa4 {[%emt 0:00:00]} (18. Ne4 $1 $14) 18... Qb6 {[%emt 0:04:06]} 19. Ne4 {[%emt 0:00:00]} Bf4 {[%emt 0:01:48]} 20. Nc5 {[%emt 0:00:00]} Bb5 {[%emt 0:01:08]} 21. Qc2 {[%emt 0:00:00]} Rfd8 {[%emt 0:02:35]} 22. Qb3 {[%emt 0:00:00]} Rb8 {[%emt 0:02:07]} 23. g3 {[%emt 0:00:00]} Bd6 {[%emt 0:00:25]} 24. Bd2 {[%emt 0:00:00]} Bxc5 {[%emt 0:01:50]} 25. Rxc5 {[%emt 0:00:00]} a4 {[%emt 0:01:01]} 26. Qc2 {[%emt 0:00:00]} Rd6 {[%emt 0:01:01]} 27. Bxd5 {[%emt 0:00:00]} Rxd5 {[%emt 0:00:42]} 28. Rxd5 {[%emt 0:00:00]} cxd5 {[%emt 0:00:07]} 29. Bc3 {[%emt 0:00:00]} Qa6 {[%emt 0:00:29]} 30. Qd2 {[%emt 0:00:55]} Bc4 {[%emt 0:00:34]} 31. f4 {[%emt 0:00:59]} Qd6 {[%emt 0:00:54]} 32. Qe3 {[%emt 0:01:15]} Qd7 {[%emt 0:00:29]} 33. Qe5 {[%emt 0:01:40]} Rc8 {[%emt 0:00:44]} 34. g4 {[%emt 0:01:18]} Bb5 {[%emt 0:00:30]} 35. Re3 {[%emt 0:01:55]} Qc6 {[%emt 0:00:41]} 36. h4 {[%emt 0:01:58]} Qc4 {[%emt 0:00:15]} 37. Re1 {[%emt 0:01:42]} Qd3 {[%emt 0:00:16]} 38. Qe3 {[%emt 0:00:10]} Qg6 {[%emt 0:00:42]} 39. Qf3 {[%emt 0:00:55]} h5 {[%emt 0:00:43]} 40. g5 {[%emt 0:00:33]} Bd3 {[%emt 0:00:19]} 41. Kf2 {[%emt 0:00:53]} Qf5 {[%emt 0:00:33]} 42. Re5 {[%emt 0:00:35]} Qg6 {[%emt 0:00:44]} 43. Re3 {[%emt 0:00:39]} Bc2 {[%emt 0:00:23]} 44. Qe2 {[%emt 0:00:31]} Qf5 {[%emt 0:00:28]} 45. Qxh5 {[%emt 0:00:56]} (45. Kg3 $1 $11 {and White has nothing to worry.}) 45... Qxf4+ {[%emt 0:00:14]} 46. Rf3 $2 {[%emt 0:00:07]} (46. Qf3 $17 Qxh4+ 47. Qg3 Qxg3+ 48. Kxg3) 46... Qh2+ {[%emt 0:00:06]} 47. Ke3 {[%emt 0:00:17]} Qg1+ {[%emt 0:00:47]} 48. Rf2 {[%emt 0:00:18] [#]} g6 $2 {[%emt 0:00:40]} (48... Bg6 $1 $19 {[%cal Rg6h5]} 49. Qe2 e5 50. dxe5 Rc4) 49. Qf3 {[%emt 0:00:06]} Rc7 {[%emt 0:00:49]} (49... Bf5 $17 50. Kf4 Be4) 50. Qg2 $2 {[%emt 0:00:51]} (50. Qf4 $11 Rb7 51. Qh2 Qc1+ 52. Rd2) 50... Qc1+ {[%emt 0:00:28]} 51. Rd2 $1 $11 {[%emt 0:00:16] and White is okay.} Qe1+ $2 {[%emt 0:00:34]} (51... Rxc3+ $19 52. bxc3 Be4) 52. Re2 $2 {[%emt 0:01:03]} (52. Qe2 $1 $11 {and White is okay.} Qc1 (52... Qxh4 53. Rxc2 Qxg5+ 54. Kd3 $16) 53. Kf2) 52... Qc1+ {[%emt 0:00:15]} 53. Kf2 $2 {[%emt 0:00:49]} Qf4+ {[%emt 0:00:36]} 54. Kg1 {[%emt 0:00:09]} Be4 {[%emt 0:00:22]} 55. Qh2 $2 {[%emt 0:00:48]} ({Only move:} 55. Qh3 $1 $15) 55... Qg4+ {[%emt 0:00:29]} 56. Kf1 {[%emt 0:00:10]} Rb7 $2 {[%emt 0:00:49]} (56... Rxc3 $19 57. bxc3 Bd3) 57. Ke1 $1 {[%emt 0:00:35]} Bd3 {[%emt 0:00:23]} 58. Rf2 {[%emt 0:00:28]} Qe4+ {[%emt 0:00:17]} 59. Kd2 {[%emt 0:00:23]} Bc4 {[%emt 0:00:36]} 60. Qf4 {[%emt 0:00:40]} Qd3+ {[%emt 0:00:17]} 61. Kc1 {[%emt 0:00:25]} Bb3 {[%emt 0:00:40]} 62. Qd2 {[%emt 0:00:39]} Qh3 {[%emt 0:00:24]} 63. Qf4 {[%emt 0:00:29]} Qd3 {[%emt 0:00:38]} 64. Qd2 {[%emt 0:00:05]} Qh3 {[%emt 0:00:27]} 65. Qf4 {[%emt 0:00:22]} Bc4 {[%emt 0:00:41]} 66. Kd2 {[%emt 0:00:54]} Qd3+ {[%emt 0:00:25]} 67. Kc1 {[%emt 0:00:05] [#]} Bb3 {[%emt 0:00:40]} ({Black should try} 67... Ba2 $1 $17) 68. Qd2 {[%emt 0:00:07]} Qg3 {[%emt 0:00:18]} 69. Qf4 {[%emt 0:00:44]} Qh3 {[%emt 0:00:38]} 70. Kd2 {[%emt 0:01:01]} Qh1 {[%emt 0:00:39]} (70... Bc4 $1 $15) 71. Rf1 {[%emt 0:00:25]} Qg2+ {[%emt 0:00:25]} 72. Rf2 {[%emt 0:00:18]} Qg1 {[%emt 0:00:36]} 73. Rf1 {[%emt 0:00:25]} Qg2+ {[%emt 0:00:14]} 74. Rf2 {[%emt 0:00:13]} Qg1 {[%emt 0:00:17]} 75. Rf1 {[%emt 0:00:42]} Qg2+ {[%emt 0:00:20]} 76. Rf2 $11 {[%emt 0:00:45]} 1/2-1/2

[Event "French-ch U16-U18 2024"]
[Site "Agen"]
[Date "2024.04.21"]
[Round "9.15"]
[White "Riss, Selenia"]
[Black "Personne, Solene"]
[Result "0-1"]
[ECO "B50"]
[WhiteElo "1763"]
[BlackElo "1719"]
[Annotator "NA RC COMBH"]
[PlyCount "88"]
[EventDate "2024.04.14"]
[EventType "swiss"]
[EventCountry "FRA"]
[SourceTitle "playchess.com"]
[Source "ChessBase"]
[SourceQuality "1"]
[TimeControl "5400+30"]

1. e4 {[%emt 0:00:03]} c5 {[%emt 0:00:10]} 2. Nf3 {[%emt 0:00:04]} d6 {[%emt 0:00:04]} 3. c3 {[%emt 0:00:06]} Nf6 {[%emt 0:01:19]} 4. h3 {[%emt 0:00:06]} e6 {[%emt 0:04:04]} 5. Bd3 {[%emt 0:06:06]} Nbd7 {[%emt 0:03:13]} 6. O-O {[%emt 0:07:11]} Ne5 {[%emt 0:06:09]} 7. Bc2 {[%emt 0:06:59]} Qc7 {[%emt 0:03:51]} 8. a4 {[%emt 0:10:15]} Be7 {[%emt 0:07:35]} 9. Na3 {[%emt 0:03:02]} O-O {[%emt 0:02:43]} 10. Nh2 {[%emt 0:12:05]} d5 {[%emt 0:05:02]} 11. f4 {[%emt 0:05:30]} Ng6 {[%emt 0:06:51]} 12. e5 {[%emt 0:01:27]} Nd7 {[%emt 0:05:03]} 13. Qg4 {[%emt 0:05:46]} f5 {[%emt 0:05:09]} 14. Qh5 {[%emt 0:03:12]} b6 {[%emt 0:11:49]} 15. g4 {[%emt 0:10:06]} Bb7 {[%emt 0:13:39]} 16. gxf5 {[%emt 0:02:41]} exf5 {[%emt 0:01:37]} 17. Bxf5 {[%emt 0:00:53]} Qc6 {[%emt 0:00:30]} 18. d3 {[%emt 0:01:08]} Rfe8 {[%emt 0:11:12]} 19. Qg4 {[%emt 0:03:30]} Ndf8 {[%emt 0:01:52]} 20. Nc2 {[%emt 0:02:31]} Nh4 {[%emt 0:01:19]} 21. Ne3 {[%emt 0:03:24]} Nxf5 {[%emt 0:00:11]} 22. Nxf5 {[%emt 0:00:08]} Ng6 {[%emt 0:00:24]} 23. Nxe7+ {[%emt 0:00:45]} Rxe7 {[%emt 0:00:12]} 24. d4 {[%emt 0:00:09]} cxd4 {[%emt 0:00:42]} 25. cxd4 {[%emt 0:00:01]} Rf8 {[%emt 0:01:08]} 26. Bd2 {[%emt 0:01:27]} a5 {[%emt 0:00:04]} 27. f5 {[%emt 0:03:18]} Nh8 {[%emt 0:02:08]} 28. Bg5 {[%emt 0:01:15]} Ree8 {[%emt 0:01:50]} 29. Rfc1 {[%emt 0:02:07]} Qd7 {[%emt 0:00:51]} 30. e6 {[%emt 0:00:08]} Qd6 {[%emt 0:00:13]} 31. Bf4 {[%emt 0:01:59]} Qb4 {[%emt 0:00:12]} 32. Be5 {[%emt 0:00:05]} g6 {[%emt 0:01:58]} 33. Rc7 {[%emt 0:03:30]} Re7 {[%emt 0:01:33]} 34. Rac1 {[%emt 0:01:45]} Rxf5 {[%emt 0:00:24]} 35. Rxe7 {[%emt 0:01:08]} Qxe7 {[%emt 0:00:05]} 36. Rc7 {[%emt 0:01:06]} Qb4 {[%emt 0:02:02]} 37. Rg7+ {[%emt 0:01:20]} Kf8 {[%emt 0:00:10]} 38. e7+ {[%emt 0:01:22]} Ke8 {[%emt 0:00:18]} 39. Rg8+ {[%emt 0:01:22]} Kxe7 {[%emt 0:00:19]} 40. Qh4+ {[%emt 0:00:18]} g5 {[%emt 0:01:55]} 41. Qxh7+ {[%emt 0:01:00]} Rf7 {[%emt 0:00:21]} 42. Qd3 {[%emt 0:00:34]} Qe1+ {[%emt 0:00:28]} 43. Kg2 {[%emt 0:00:34]} Rf2+ {[%emt 0:00:17]} 44. Kg3 {[%emt 0:00:06]} Qg1# {[%emt 0:00:07]} 0-1

[Event "French-ch U16-U18 2024"]
[Site "Agen"]
[Date "2024.04.21"]
[Round "9.16"]
[White "Razafindratsima, Timothe"]
[Black "Fischler, Oscar"]
[Result "1-0"]
[ECO "C84"]
[WhiteElo "2438"]
[BlackElo "2275"]
[Annotator "TA"]
[PlyCount "85"]
[EventDate "2024.04.14"]
[EventType "swiss"]
[EventCountry "FRA"]
[SourceTitle "playchess.com"]
[Source "ChessBase"]
[SourceQuality "1"]
[TimeControl "5400+30"]

{[%evp 14,85,14,16,32,21,21,12,28,22,25,0,30,32,63,29,74,39,89,28,81,20,67,72,67,73,155,157,127,91,152,120,138,104,121,91,64,89,45,47,146,69,621,622,622,618,613,604,587,258,758,746,672,440,832,830,1467,1375,5742,5531,29963,29966,29987,29970,29975,1187,1187,743,29991,617,29992,29993,29998,29999]} 1. e4 {[%emt 0:00:02]} e5 {[%emt 0:00:03]} 2. Nf3 {[%emt 0:00:09]} Nc6 {[%emt 0:00:05]} 3. Bb5 {[%emt 0:00:07]} a6 {[%emt 0:00:03]} 4. Ba4 {[%emt 0:00:06]} Nf6 {[%emt 0:00:14]} 5. O-O {[%emt 0:00:12]} Be7 {[%emt 0:00:13]} 6. d3 {[%emt 0:00:25][%cal Bd2d3,Bd3d4][%mdl 32]} b5 {[%emt 0:00:08]} 7. Bb3 {[%emt 0:00:03]} d6 {[%emt 0:00:06]} 8. c3 {[%emt 0:00:21]} Na5 {[%emt 0:08:50]} 9. Bc2 {[%emt 0:00:01]} c5 {[%emt 0:00:09][%cal Bc7c5,Bc5c4][%mdl 32]} 10. d4 {[%emt 0:02:27]} Qc7 {[%emt 0:11:42] The position is equal.} 11. d5 {[%emt 0:00:07]} O-O {[%emt 0:06:32]} 12. h3 {[%emt 0:00:11]} Bd7 {[%emt 0:02:58]} 13. b3 {[%emt 0:00:18][%cal Bb2b3,Bb3b4][%mdl 32]} c4 {[%emt 0:11:55]} 14. Be3 {[%emt 0:01:32]} Rfc8 {[%emt 0:02:51][%cal Ob5b4]} 15. Nfd2 {[%emt 0:02:12]} Be8 {[%emt 0:08:15]} (15... Nb7 $14) 16. Kh1 {[%emt 0:24:33]} (16. b4 $16) 16... Bf8 {[%emt 0:02:05]} (16... Nb7 $11 {keeps the balance.}) 17. f4 {[%emt 0:04:49]} (17. b4 $16) 17... Nd7 {[%emt 0:02:35]} (17... exf4 $11 18. Bd4 (18. Bxf4 cxb3 19. axb3 Nb7 $11) 18... cxb3 19. axb3 Nd7) 18. b4 $14 {[%emt 0:06:09]} Nb7 {[%emt 0:00:06]} 19. a4 {[%emt 0:00:03]} a5 {[%emt 0:09:39]} (19... exf4 $142 20. Rxf4 (20. Bxf4 Ne5 $16) 20... Ne5) 20. Na3 $16 {[%emt 0:05:09]} (20. axb5 axb4 21. Rxa8 Rxa8) 20... bxa4 {[%emt 0:00:05]} 21. Ndxc4 {[%emt 0:05:07]} axb4 {[%emt 0:00:33]} (21... exf4 $142 22. Bd4 (22. Rxf4 Ne5 $16) 22... Rcb8) 22. cxb4 {[%emt 0:00:03]} exf4 {[%emt 0:01:32]} 23. Bd4 {[%emt 0:03:13]} (23. Bxf4 Ne5 24. Bd3 Nd8 $16) 23... Nd8 {[%emt 0:04:17]} 24. Bxa4 {[%emt 0:14:10] White is much more active.} Ne5 {[%emt 0:04:54]} 25. Bxe8 {[%emt 0:10:21]} Nxc4 {[%emt 0:00:02]} 26. Nxc4 {[%emt 0:00:09]} Qxc4 {[%emt 0:00:58] [#]} (26... Rxa1 $14 27. Qxa1 Qxc4) 27. b5 {[%emt 0:03:24]} (27. Rb1 $1 $16) 27... Ne6 $2 {[%emt 0:03:56][%mdl 8192] Loses the game.} 28. Bxf7+ $18 {[%emt 0:04:27]} Kxf7 {[%emt 0:01:21]} 29. dxe6+ {[%emt 0:00:03]} Qxe6 {[%emt 0:00:50]} 30. Rxf4+ {[%emt 0:00:09]} Kg8 {[%emt 0:00:11][%cal Bf7g8,Bg8f8,Bf8e8][%mdl 32]} 31. Ba7 {[%emt 0:01:39]} (31. b6 $142 {Threatens to win with b7.} d5 32. Ra7 Rxa7 33. bxa7 dxe4 34. Qb1) 31... g5 $2 {[%emt 0:03:36]} (31... Qe5) 32. Rf5 {[%emt 0:03:07][%cal Bf4f5,Bf5g5,Bg5g4][%mdl 32]} Bg7 {[%emt 0:02:06]} 33. Rxg5 {[%emt 0:02:29] Threatening mate with Bd4.} Qf6 {[%emt 0:01:10]} (33... h6 $142) 34. Rg4 {[%emt 0:01:15] aiming for Bd4.} Kf8 {[%emt 0:04:25] [#]} 35. e5 $1 {[%emt 0:01:05]} Qxe5 {[%emt 0:02:52]} (35... Qe6 36. b6) 36. Bd4 {[%emt 0:00:54]} Rxa1 {[%emt 0:00:17]} 37. Qxa1 {[%emt 0:00:20]} Qxb5 {[%emt 0:00:10]} 38. Bxg7+ {[%emt 0:00:10]} Ke8 {[%emt 0:00:18]} 39. Qf6 {[%emt 0:01:15]} (39. Bd4 $142 Qb3 40. Qe1+ Kd7 41. Rg7+ Kc6 42. Qc1+ (42. Rxh7 Qc2 $18) 42... Kd5 43. Qxc8 Kxd4 44. Rg4+ (44. Rxh7 Qb1+ 45. Kh2 Qxh7 $16) 44... Ke5 45. Qh8+ Ke6 46. Qg8+ (46. Qxh7 Qd1+ 47. Kh2 Qf1 48. Qe4+ Kf7 49. Rf4+ Qxf4+ 50. Qxf4+ Ke7) 46... Ke5 47. Qxb3) 39... Rc1+ {[%emt 0:01:08]} 40. Kh2 {[%emt 0:00:06] Qe6+ would kill now.} Qc5 {[%emt 0:00:26]} 41. Qe6+ {[%emt 0:00:04]} Kd8 {[%emt 0:00:04]} 42. Bd4 {[%emt 0:00:04]} Qa3 {[%emt 0:00:35]} 43. Bb6+ {[%emt 0:00:06] Weighted Error Value: White=0.38/Black=0.90.  Loses game:     	---       	Black=1      Mistake:       	White=3     	Black=6      Inaccurate:     	White=2     	Black=4      OK:         	White=6     	Black=4      Best:        	White=2     	Black=1} 1-0

[Event "French-ch U16-U18 2024"]
[Site "Agen"]
[Date "2024.04.21"]
[Round "9.17"]
[White "Makkar, Rajat"]
[Black "Belkaid, Sohan"]
[Result "1-0"]
[ECO "A14"]
[WhiteElo "2452"]
[BlackElo "2412"]
[Annotator "TA"]
[PlyCount "91"]
[EventDate "2024.04.14"]
[EventType "swiss"]
[EventCountry "FRA"]
[SourceTitle "playchess.com"]
[Source "ChessBase"]
[SourceQuality "1"]
[TimeControl "5400+30"]

{[%evp 17,91,0,0,0,0,0,0,0,8,6,0,8,14,15,72,70,87,74,93,72,88,79,71,75,90,76,79,-49,-41,-48,32,20,39,0,0,0,46,6,6,16,55,55,230,122,123,83,85,81,169,110,263,260,491,482,656,660,678,620,614,615,627,627,624,580,583,591,612,539,579,576,600,596,715,715,715,715]} 1. c4 {[%emt 0:00:03]} e6 {[%emt 0:06:29]} 2. g3 {[%emt 0:00:12]} d5 {[%emt 0:00:42]} 3. Bg2 {[%emt 0:00:06]} Nf6 {[%emt 0:00:34]} 4. Nf3 {[%emt 0:00:06]} Be7 {[%emt 0:01:22]} 5. O-O {[%emt 0:00:14]} O-O {[%emt 0:00:13]} 6. b3 {[%emt 0:00:06]} c5 {[%emt 0:01:54]} 7. e3 {[%emt 0:00:16]} Nc6 {[%emt 0:02:06]} 8. Bb2 {[%emt 0:00:47]} b6 {[%emt 0:01:34]} 9. Nc3 {[%emt 0:00:43]} Ba6 {[%emt 0:05:25]} 10. Qe2 {[%emt 0:08:22]} Rc8 {[%emt 0:08:23]} 11. Rfd1 {[%emt 0:07:19]} Qc7 {[%emt 0:09:30]} 12. Rac1 {[%emt 0:01:45] The position is equal.} Rfd8 {[%emt 0:04:04]} 13. d3 {[%emt 0:06:31][%cal Bd2d3,Bd3d4][%mdl 32]} Qb8 {[%emt 0:02:38]} 14. Nb5 {[%emt 0:09:37]} Bb7 {[%emt 0:06:50][%cal Ba6b7,Bb7c8,Bc8g4][%mdl 32]} 15. d4 {[%emt 0:06:01]} Ne4 {[%emt 0:03:41]} (15... cxd4 $11 16. exd4 h6) 16. cxd5 $16 {[%emt 0:01:38]} exd5 {[%emt 0:00:28]} 17. Bh3 {[%emt 0:01:26]} a6 {[%emt 0:08:10]} 18. Bxc8 {[%emt 0:05:29]} Bxc8 {[%emt 0:00:22]} 19. Nc3 {[%emt 0:00:49]} Bg4 {[%emt 0:00:45] ...Ng5 would now be deadly.} 20. h3 $1 {[%emt 0:00:37]} Bxh3 {[%emt 0:07:04] ...Bg4 is the strong threat.} 21. Nxe4 $1 {[%emt 0:01:01]} (21. Qxa6 $6 Nb4 22. Qb5 Bd7 $15) 21... dxe4 {[%emt 0:00:09]} 22. Ne5 {[%emt 0:02:17] Wards off Bg4} (22. Nd2 $16 {Black must now prevent dxc5.} Bf5 23. dxc5 (23. Qxa6 Nb4 $15) 23... bxc5 24. Nc4 (24. Qxa6 Nb4 $11)) 22... Nxe5 $15 {[%emt 0:05:55]} 23. dxe5 {[%emt 0:00:27]} Re8 {[%emt 0:00:20]} (23... Rxd1+ $1 $15 24. Qxd1 (24. Rxd1 Qc8 $15) 24... Qb7) 24. Qxa6 $14 {[%emt 0:06:06]} Bg4 $1 {[%emt 0:03:38]} 25. Qc4 {[%emt 0:05:14]} Qa8 {[%emt 0:03:17][%cal Oa8c6]} 26. Rd2 {[%emt 0:03:12][%cal Ob3b4]} h5 {[%emt 0:06:35]} (26... Qc6 $11) 27. Qd5 {[%emt 0:02:47]} Qxd5 {[%emt 0:05:00]} 28. Rxd5 {[%emt 0:00:07]} Bf8 {[%emt 0:00:44]} 29. Rd2 {[%emt 0:01:23]} Bf3 $2 {[%emt 0:03:17] [#]} (29... Be6 $14) 30. b4 $1 {[%emt 0:05:26]} cxb4 $16 {[%emt 0:00:55]} 31. Rc7 {[%emt 0:01:54][%cal Oe5e6]} Ra8 {[%emt 0:02:40]} 32. Bd4 {[%emt 0:01:30][%cal Od2c2] White is more active.} Ra3 {[%emt 0:00:31]} (32... Bg4 $16 {keeps fighting.}) 33. Rc1 {[%emt 0:04:01]} (33. Bxb6 $18 g5 34. Rc1) 33... Ra6 $2 {[%emt 0:01:13] [#]} (33... b5 $16) 34. Rc8 $1 $18 {[%emt 0:00:45] Hoping for Rb2.} h4 $2 {[%emt 0:00:14]} (34... Bg4 {was worth a try.} 35. Rb8 Ra3) 35. gxh4 {[%emt 0:01:04] White is clearly winning.} b3 {[%emt 0:00:39]} 36. axb3 {[%emt 0:19:09]} b5 {[#]} 37. e6 $1 {[%emt 0:00:00]} Rxe6 {[%emt 0:01:06]} 38. Bc5 {[%emt 0:00:00]} Rg6+ {[%emt 0:00:09]} 39. Kf1 {[%emt 0:00:00]} Ra6 {[%emt 0:00:52]} 40. Rxf8+ {[%emt 0:00:00]} Kh7 {[%emt 0:00:01] ( -> ...Ra1+)} 41. Kg1 {[%emt 0:00:00]} (41. Rxf7 $2 {leads to mate.} Ra1+) 41... Ra1+ {[%emt 0:00:33]} 42. Kh2 {[%emt 0:00:00]} Rh1+ {[%emt 0:00:36]} 43. Kg3 {[%emt 0:00:00]} f6 {[%emt 0:00:50]} 44. Rd5 {[%emt 0:00:00]} Kg6 {[%emt 0:00:29] [#]} 45. h5+ $1 {[%emt 0:00:00]} Bxh5 {[%emt 0:00:12]} (45... Rxh5 46. Rxh5) 46. Rh8 {[%emt 0:00:00] Weighted Error Value: White=0.17 (very precise) /Black=0.42.  Loses game:     	---       	Black=1      Mistake:       	White=3     	Black=6      Inaccurate:     	White=3     	Black=2      OK:         	White=10    	Black=8      Best:        	White=4     	Black=2      Strong:       	White=3     	Black=1} 1-0